bitfinex-derivatives/quotes_ETHF0:USTF0_20250217
["timestamp","ask_amount","ask_price","bid_price","bid_amount"]
[1739802142405,6.8021,2815.7,2815.3,0.4370341]
[1739802142595,0.71028,2815.4,2815.3,0.4370341]
[1739802142795,0.71028,2815.4,2814.8,3.91823]
[1739802142796,0.71036,2815.1,2814.8,3.2078]
[1739802142995,0.7104,2815.0,2814.8,3.2078]
[1739802143299,3.029,2815.2,2814.9,0.43718339]
[1739802143792,3.029,2815.2,2814.8,3.2078]
[1739802143793,3.029,2815.2,2815.0,0.43718339]
[1739802143997,3.029,2815.4,2815.0,0.43718339]
[1739802144195,6.2368,2815.4,2815.0,0.43718339]
[1739802144395,6.2368,2815.4,2814.6,0.00532481]
[1739802144396,1.77602,2815.0,2814.6,0.00532481]
[1739802144606,0.71046,2814.7,2814.6,0.00532481]
[1739802144804,6.7549975,2814.9,2814.6,0.00532481]
[1739802145104,0.71046,2814.7,2814.6,0.00532481]
[1739802145901,3.5217,2814.8,2814.6,0.00532481]
[1739802146102,0.71046,2814.7,2814.6,0.00532481]
[1739802147399,3.5217,2814.8,2814.6,0.00532481]
[1739802147603,0.71046,2814.7,2814.6,0.00532481]
[1739802148507,3.4805,2815.0,2814.6,0.00532481]
[1739802148699,6.2368,2815.1,2814.6,0.00532481]
[1739802149203,3.029,2815.1,2814.7,0.43724209]
[1739802149397,3.029,2815.1,2814.6,0.00532481]
[1739802149398,3.7259975,2815.0,2814.6,0.00532481]
[1739802149594,0.71046,2814.7,2814.6,0.00532481]
[1739802150200,0.71046,2814.7,2814.6,0.44297103]
[1739802150402,3.6804,2814.9,2814.6,0.44297103]
[1739802150606,0.71046,2814.7,2814.6,0.00532481]
[1739802151004,13.6442575,2814.7,2814.6,0.00532481]
[1739802151201,0.7107,2813.8,2813.6,6.9368]
[1739802151401,3.029,2813.7,2812.7,3.2078]
[1739802151701,3.029,2813.7,2812.4,3.2078]
[1739802151702,3.2078,2813.4,2812.4,3.2078]
[1739802151907,3.7259975,2812.9,2812.4,3.2078]
[1739802152104,3.029,2813.0,2812.4,3.91883]
[1739802152307,3.029,2813.0,2812.4,3.2078]
[1739802152507,3.2078,2812.7,2812.5,0.43826723]
[1739802152717,4.4369875,2812.6,2812.5,7.23e-06]
[1739802153008,13.5038975,2812.6,2811.4,3.2078]
[1739802153304,3.7259975,2812.2,2811.4,3.2078]
[1739802153511,3.2078,2812.3,2811.4,3.91908]
[1739802153808,3.2078,2812.3,2811.0,7.3862]
[1739802153809,3.91888,2812.3,2811.7,3.2078]
[1739802153996,3.91887,2812.3,2811.7,3.2078]
[1739802154200,0.71111,2812.2,2811.7,3.2078]
[1739802154397,3.2078,2812.3,2811.7,3.2078]
[1739802154596,3.2078,2812.3,2811.6,0.00533466]
[1739802154597,3.2078,2812.7,2812.0,3.2078]
[1739802154797,3.2078,2812.7,2812.1,3.6251]
[1739802155003,3.7259975,2814.6,2812.8,3.2078]
[1739802155212,3.7259975,2815.4,2814.0,3.2078]
[1739802155213,3.5011,2814.7,2814.0,3.2078]
[1739802155508,3.7259975,2814.6,2814.0,3.2078]
[1739802155805,0.71051,2814.5,2813.6,3.2078]
[1739802156011,3.38600001,2814.9,2814.4,3.2078]
[1739802156204,6.9337975,2815.2,2814.4,3.91832]
[1739802156205,3.7259975,2815.2,2814.4,3.91832]
[1739802156507,3.7259975,2815.2,2813.8,0.00533466]
[1739802156508,3.7259975,2814.7,2814.3,3.2078]
[1739802156707,0.71066,2813.9,2813.8,0.00533466]
[1739802156900,11.23652028,2813.9,2813.8,0.00533466]
[1739802157104,17.23652028,2813.9,2813.8,0.00533466]
[1739802157302,0.71088,2813.1,2812.7,3.2078]
[1739802157506,4.28806028,2813.1,2812.4,3.2078]
[1739802157702,4.99894028,2813.1,2812.4,3.2078]
[1739802157904,4.28806028,2813.1,2812.4,3.2078]
[1739802158304,3.2078,2812.7,2812.1,3.2078]
[1739802158505,0.71099,2812.6,2812.5,0.00533466]
[1739802158915,6.0,2812.6,2811.0,6.9988]
[1739802159107,4.28806028,2812.1,2811.4,3.2078]
[1739802159308,3.03,2812.2,2811.9,3.2078]
[1739802159506,7.49586028,2812.5,2811.9,3.2078]
[1739802160016,7.49586028,2812.5,2811.5,3.2078]
[1739802160219,3.2078,2812.1,2811.9,0.00533466]
[1739802160410,3.2078,2812.2,2811.9,0.00533466]
[1739802160715,0.71114,2812.0,2811.9,0.00533466]
[1739802161309,7.31806028,2812.1,2811.9,0.00533466]
[1739802161509,3.74114,2812.1,2811.9,0.00533466]
[1739802161722,0.71114,2812.0,2811.9,0.00533466]
[1739802162812,3.03,2812.1,2811.9,0.00533466]
[1739802163815,3.2078,2812.7,2811.9,6.00533466]
[1739802164013,3.2078,2812.7,2811.9,0.00533466]
[1739802164214,3.2078,2812.7,2811.9,0.71649466]
[1739802164415,0.71099,2812.7,2812.0,0.71113]
[1739802164617,27.19919494,2813.0,2811.9,0.00533466]
[1739802164815,27.19919494,2813.0,2812.1,3.2078]
[1739802164816,3.031,2812.9,2812.1,3.2078]
[1739802165117,3.031,2812.9,2812.2,3.8359]
[1739802165118,0.71099,2812.7,2812.2,3.8359]
[1739802165315,3.031,2812.9,2812.2,3.8359]
[1739802165917,3.2078,2812.7,2812.2,3.8359]
[1739802166219,0.71113,2812.1,2811.9,0.00533466]
[1739802166419,0.71107,2812.3,2811.9,0.00533466]
[1739802166913,3.2078,2812.7,2811.9,0.00533466]
[1739802167212,19.70333466,2813.0,2812.5,3.2078]
[1739802167414,0.00533466,2813.0,2812.5,3.2078]
[1739802167618,0.00533466,2813.0,2812.8,3.2078]
[1739802168123,0.71097,2812.7,2812.6,3.8093]
[1739802168416,0.711,2812.6,2812.4,3.2078]
[1739802168617,0.711,2812.6,2812.1,3.031]
[1739802168618,7.50119494,2813.0,2812.1,7.0171]
[1739802169014,4.29339494,2813.0,2812.1,7.7282]
[1739802169213,4.29339494,2813.0,2812.2,0.71109]
[1739802169519,4.29339494,2813.0,2812.1,7.0171]
[1739802169917,4.29339494,2813.0,2812.4,3.2078]
[1739802170120,0.71098,2812.7,2812.4,3.2078]
[1739802170312,4.29339494,2813.0,2812.4,3.91884]
[1739802170619,0.00533466,2813.0,2812.4,3.2078]
[1739802170913,0.00533466,2813.0,2812.5,3.2078]
[1739802171719,0.71096,2812.8,2812.5,3.2078]
[1739802171919,4.29339494,2813.0,2812.5,3.2078]
[1739802172119,4.29339494,2813.0,2812.1,7.0171]
[1739802172318,0.71109,2812.2,2812.1,7.0171]
[1739802172612,3.2078,2812.6,2812.1,7.0171]
[1739802172817,0.71114,2812.0,2811.9,0.00533466]
[1739802174215,10.52686028,2812.1,2811.9,0.00533466]
[1739802174415,11.23799028,2812.1,2811.9,0.00533466]
[1739802174621,10.52686028,2812.1,2811.9,0.00533466]
[1739802175024,0.71114,2812.0,2811.9,0.00533466]
[1739802175722,10.52686028,2812.1,2811.9,0.00533466]
[1739802176120,11.23798028,2812.1,2811.9,0.00533466]
[1739802176321,3.2078,2812.1,2811.9,0.00533466]
[1739802176518,3.031,2812.4,2811.9,0.00533466]
[1739802177025,3.031,2812.4,2812.0,0.71114]
[1739802177221,3.031,2812.4,2811.9,0.00533466]
[1739802177727,0.71114,2812.0,2811.9,0.00533466]
[1739802177918,3.91894,2812.0,2811.9,0.00533466]
[1739802178119,0.71114,2812.0,2811.9,0.00533466]
[1739802178624,3.91894,2812.0,2811.9,0.00533466]
[1739802178926,6.94994,2812.0,2811.9,0.00533466]
[1739802179514,3.74214,2812.0,2811.9,0.00533466]
[1739802180127,6.94994,2812.0,2811.9,0.00533466]
[1739802180734,10.69226528,2812.0,2811.9,0.00533466]
[1739802181224,16.69226528,2812.0,2811.9,0.00533466]
[1739802181428,4.45367528,2811.2,2811.1,3.2078]
[1739802181625,3.74232528,2811.2,2810.6,6.7858]
[1739802181930,0.71138,2811.1,2810.6,7.49729]
[1739802182128,4.98643,2810.8,2809.7,3.2078]
[1739802182328,0.35600001,2811.1,2809.7,0.7117]
[1739802182329,3.74232528,2810.0,2809.7,0.7117]
[1739802182529,0.00533466,2810.5,2810.0,0.00357548]
[1739802182735,0.00533466,2810.5,2810.4,0.71155]
[1739802183031,3.5543,2811.5,2810.4,3.2078]
[1739802183032,4.29863592,2811.4,2810.4,3.2078]
[1739802183224,0.71133,2811.3,2810.4,3.2078]
[1739802183427,4.29863592,2811.0,2810.4,3.2078]
[1739802183628,7.33063592,2811.0,2810.4,3.2078]
[1739802183823,3.2078,2811.0,2810.4,3.2078]
[1739802184028,7.51177058,2811.0,2810.4,3.2078]
[1739802184227,7.51177058,2811.0,2810.6,0.7115]
[1739802184435,7.51177058,2811.0,2810.4,3.2078]
[1739802184624,3.21313466,2811.0,2810.4,3.2078]
[1739802185429,3.21313466,2811.0,2810.8,0.71143]
[1739802185732,3.21313466,2811.0,2810.4,3.2078]
[1739802185733,4.29863592,2810.9,2810.4,3.2078]
[1739802185932,7.32963592,2810.9,2810.4,3.2078]
[1739802186129,8.04106592,2810.9,2810.4,3.2078]
[1739802186333,0.00533466,2811.0,2810.9,0.71142]
[1739802186536,0.00533466,2811.0,2810.7,3.2078]
[1739802186734,3.2078,2812.4,2810.9,7.47274334]
[1739802186938,3.2078,2812.4,2811.5,3.2078]
[1739802187136,3.2078,2812.4,2811.8,3.2078]
[1739802187329,4.29863592,2812.7,2812.4,0.71103]
[1739802187529,3.032,2812.8,2812.6,0.71097]
[1739802187729,3.032,2812.8,2812.1,3.2078]
[1739802188037,3.032,2812.8,2812.6,0.71099]
[1739802188229,3.84180001,2812.9,2812.6,0.71099]
[1739802188430,3.84180001,2812.9,2812.5,0.71099]
[1739802188932,0.00533466,2813.0,2812.4,0.00533466]
[1739802189132,0.00533466,2813.0,2812.9,0.71092]
[1739802189339,0.00533466,2813.0,2812.7,3.2078]
[1739802189530,0.00533466,2813.0,2812.7,3.91875]
[1739802189831,0.00533466,2813.0,2812.7,3.91876]
[1739802190037,0.00533466,2813.0,2812.4,3.21313466]
[1739802190335,0.00533466,2813.0,2812.8,0.71094]
[1739802190843,0.00533466,2813.0,2812.9,0.71092]
[1739802191135,19.715,2814.1,2812.9,0.71092]
[1739802191327,0.71069,2813.8,2813.0,6.6947]
[1739802191523,0.71069,2813.8,2813.0,3.2078]
[1739802191524,4.29863592,2813.6,2813.0,3.2078]
[1739802191733,3.2078,2813.5,2812.6,3.2078]
[1739802191931,0.71079,2813.4,2812.7,0.71097]
[1739802192135,4.2154,2813.4,2812.6,3.2078]
[1739802192432,0.71094,2812.8,2812.6,3.2078]
[1739802192640,0.71092,2812.9,2812.6,3.2078]
[1739802193133,10.53643592,2813.2,2812.4,0.71637466]
[1739802193134,0.71091,2813.0,2812.4,0.71637466]
[1739802193637,10.53643592,2813.2,2812.4,0.00533466]
[1739802193837,0.7109,2813.0,2812.4,0.71635466]
[1739802194439,0.71092,2812.9,2812.4,0.71635466]
[1739802194635,10.53643592,2813.2,2812.5,3.2078]
[1739802194831,0.00533466,2813.3,2812.9,3.2078]
[1739802195038,3.2078,2813.9,2812.9,3.2078]
[1739802195334,3.38600001,2814.4,2813.6,3.2078]
[1739802195639,3.38600001,2814.4,2814.0,0.71064]
[1739802195935,10.53643592,2815.0,2814.6,0.71047]
[1739802196238,10.53643592,2815.0,2814.3,3.91835]
[1739802196436,0.71044,2814.8,2814.5,0.00533466]
[1739802196634,10.53643592,2815.0,2814.5,0.00533466]
[1739802196836,0.71043,2814.9,2814.5,0.00533466]
[1739802197035,0.71042,2814.9,2814.5,0.00533466]
[1739802197234,10.53643592,2815.0,2814.5,0.00533466]
[1739802197429,0.71043,2814.9,2814.5,0.00533466]
[1739802197831,0.71045,2814.8,2814.5,0.00533466]
[1739802198038,0.71043,2814.9,2814.5,0.00533466]
[1739802198337,0.71044,2814.9,2814.5,0.00533466]
[1739802198536,6.9482,2815.0,2814.5,0.00533466]
[1739802198733,6.2378,2815.0,2814.5,0.71583466]
[1739802198943,6.9482,2815.0,2814.5,0.71583466]
[1739802199340,6.2378,2815.0,2814.6,0.71047]
[1739802199642,6.94819,2815.0,2814.5,0.71582466]
[1739802200536,3.03,2815.0,2814.5,0.00533466]
[1739802200837,0.00533466,2815.1,2814.5,0.00533466]
[1739802201039,0.00533466,2815.1,2814.9,0.7104]
[1739802201340,0.00533466,2815.1,2814.5,0.00533466]
[1739802201341,0.00533466,2815.1,2814.7,3.2078]
[1739802201643,0.00533466,2815.1,2814.7,3.91825]
[1739802202140,0.71044,2814.8,2814.5,0.71583466]
[1739802202334,0.71044,2814.8,2814.5,0.00533466]
[1739802202641,0.71049,2814.6,2814.5,0.00533466]
[1739802203340,1.77643,2814.3,2813.1,3.6039]
[1739802203540,3.2078,2813.8,2812.8,3.2078]
[1739802203844,5.00943592,2813.4,2812.8,3.91873]
[1739802204145,4.29863592,2813.4,2812.8,3.2078]
[1739802204338,4.30397058,2813.4,2812.8,0.00533466]
[1739802204543,3.2078,2813.2,2812.8,0.00533466]
[1739802204836,0.71092,2812.9,2812.8,0.00533466]
[1739802205039,3.91872,2812.9,2812.8,0.00533466]
[1739802205944,3.028,2812.9,2812.8,0.00533466]
[1739802206242,3.028,2813.0,2812.8,0.00533466]
[1739802206836,0.00533466,2813.4,2812.8,0.00533466]
[1739802207037,0.00533466,2813.4,2813.2,0.71083]
[1739802207236,0.00533466,2813.4,2813.0,3.2078]
[1739802207445,0.00533466,2813.4,2813.0,3.91868]
[1739802207643,0.00533466,2813.4,2813.0,3.2078]
[1739802207839,0.00533466,2813.4,2813.3,0.71082]
[1739802208046,19.703,2813.8,2813.3,3.2078]
[1739802208344,3.028,2814.1,2814.0,0.71064]
[1739802208543,0.71061,2814.2,2813.6,3.91853]
[1739802208739,3.56380001,2814.4,2813.3,3.2078]
[1739802209047,0.71065,2814.0,2813.5,0.71075]
[1739802209339,0.00533466,2814.1,2813.6,3.2078]
[1739802209541,3.028,2814.0,2813.3,3.2078]
[1739802210046,0.71069,2813.8,2813.3,3.9186]
[1739802210247,0.71069,2813.8,2813.3,3.2078]
[1739802210442,3.2078,2813.9,2813.0,3.2078]
[1739802210650,0.71074,2813.6,2813.0,3.2078]
[1739802210945,4.29863592,2813.8,2813.0,3.2078]
[1739802211145,0.71073,2813.7,2813.2,0.71084]
[1739802211346,4.29863592,2813.8,2813.0,3.2078]
[1739802211542,0.71074,2813.6,2813.2,0.71083]
[1739802212142,0.71078,2813.5,2813.0,3.91868]
[1739802212449,0.71078,2813.5,2813.1,0.71086]
[1739802212752,4.29863592,2813.8,2813.4,0.71078]
[1739802212947,0.00533466,2814.1,2813.6,0.71074]
[1739802213144,0.71068,2813.9,2813.4,0.71079]
[1739802213342,3.028,2814.0,2813.3,3.2078]
[1739802213542,0.71078,2813.5,2813.3,3.2078]
[1739802213839,4.29863592,2813.8,2813.3,3.2078]
[1739802214148,4.29863592,2813.8,2813.5,0.71076]
[1739802214339,4.29863592,2813.8,2813.4,0.71077]
[1739802214540,4.29863592,2813.8,2813.3,3.2078]
[1739802214949,0.71074,2813.7,2813.3,3.2078]
[1739802215247,0.71075,2813.6,2813.2,0.71083]
[1739802215448,0.71075,2813.6,2813.1,0.71085]
[1739802215648,0.71079,2813.4,2813.0,0.71088]
[1739802215845,7.50643592,2813.8,2812.9,3.2078]
[1739802216147,3.7673,2813.7,2812.9,3.2078]
[1739802216545,0.71087,2813.1,2812.9,3.2078]
[1739802217142,7.32663592,2813.4,2812.8,0.00533466]
[1739802217443,0.71092,2812.9,2812.8,0.00533466]
[1739802218047,5.00953592,2813.0,2812.8,0.00533466]
[1739802218350,0.71092,2812.9,2812.8,0.00533466]
[1739802218540,4.29863592,2813.0,2812.8,0.00533466]
[1739802218742,5.00954592,2813.0,2812.8,0.00533466]
[1739802218952,0.71092,2812.9,2812.8,0.00533466]
[1739802219253,4.29863592,2813.0,2812.8,0.00533466]
[1739802219545,3.73792,2812.9,2812.8,0.00533466]
[1739802219751,4.80435,2812.9,2812.1,3.2078]
[1739802219941,4.80435,2812.9,2811.5,3.06033602]
[1739802219942,4.29863592,2812.4,2811.6,3.2078]
[1739802220137,0.71122,2811.8,2811.6,3.2078]
[1739802220344,0.71122,2811.8,2811.1,8.29046]
[1739802220345,3.73817,2811.9,2811.3,0.71131]
[1739802220543,3.73817,2811.9,2811.1,8.29046]
[1739802220544,0.71124,2811.7,2811.1,8.29046]
[1739802220755,0.35600001,2811.8,2810.9,3.2078]
[1739802221052,0.00533466,2811.7,2811.1,0.00533466]
[1739802221453,4.29863592,2811.6,2811.1,0.00533466]
[1739802221751,7.50643592,2811.6,2811.1,0.00533466]
[1739802222151,4.29863592,2811.2,2811.1,0.00533466]
[1739802222450,7.32563592,2811.2,2811.1,0.00533466]
[1739802222655,14.03698592,2811.2,2811.1,0.00533466]
[1739802222855,0.71143,2810.9,2809.9,0.71166]
[1739802223050,0.71143,2810.9,2809.8,7.0515]
[1739802223051,4.29863592,2810.7,2810.0,0.71165]
[1739802223254,3.028,2810.6,2809.9,0.71165]
[1739802223444,3.028,2810.6,2809.9,0.71167]
[1739802223644,3.028,2810.6,2809.8,7.0515]
[1739802223846,4.29863592,2810.7,2809.8,7.0515]
[1739802224049,3.028,2810.6,2810.1,3.2078]
[1739802224552,3.2078,2811.1,2810.0,3.028]
[1739802224741,0.00533466,2811.7,2811.2,0.71135]
[1739802225141,0.00533466,2811.7,2811.3,0.71131]
[1739802225343,0.00533466,2811.7,2810.8,3.2078]
[1739802225544,4.29863592,2811.1,2810.1,3.2078]
[1739802225751,3.028,2811.0,2810.1,3.2078]
[1739802225956,0.71143,2810.9,2810.3,0.71156]
[1739802226342,0.71151,2810.6,2810.1,3.2078]
[1739802226540,3.028,2810.5,2810.1,3.91942]
[1739802226751,3.028,2810.5,2810.1,3.2078]
[1739802226950,3.028,2810.5,2810.4,0.71155]
[1739802227151,3.028,2811.0,2810.4,3.2078]
[1739802227352,3.028,2811.0,2810.6,0.71148]
[1739802227551,3.7394,2811.0,2810.6,0.71149]
[1739802227756,0.71147,2810.7,2810.4,3.2078]
[1739802227955,0.7115,2810.6,2810.4,3.2078]
[1739802228150,0.71151,2810.6,2810.4,3.2078]
[1739802228351,3.028,2811.0,2810.4,3.2078]
[1739802228859,0.71152,2810.6,2810.4,3.2078]
[1739802229043,4.29863592,2810.7,2810.4,3.2078]
[1739802229247,0.71152,2810.5,2810.4,3.2078]
[1739802229653,3.028,2810.5,2810.0,3.2078]
[1739802229851,0.71161,2810.2,2810.0,3.2078]
[1739802230058,7.50643592,2810.3,2809.9,0.00533466]
[1739802230361,3.91945,2810.0,2809.9,0.00533466]
[1739802230655,6.94745,2810.0,2809.9,0.00533466]
[1739802230859,6.94745,2810.0,2809.0,3.2078]
[1739802230860,12.2358,2810.0,2809.0,3.9197]
[1739802231056,4.29863592,2809.6,2809.0,3.9197]
[1739802231254,0.71182,2809.4,2809.0,3.2078]
[1739802231560,0.71184,2809.3,2809.0,3.2078]
[1739802231856,4.29863592,2809.2,2808.5,3.5687]
[1739802232053,4.29863592,2809.2,2808.9,0.00533466]
[1739802232456,5.01049592,2809.2,2808.9,0.00533466]
[1739802232649,4.29863592,2809.2,2808.9,0.00533466]
[1739802232950,3.029,2809.1,2808.9,0.00533466]
[1739802234156,3.9197,2809.0,2808.9,0.00533466]
[1739802234556,7.5041,2809.0,2808.9,0.00533466]
[1739802234757,7.8609,2809.0,2808.9,0.00533466]
[1739802235273,7.149,2809.0,2808.9,0.00533466]
[1739802235855,6.7922,2809.0,2808.9,0.00533466]
[1739802236055,6.5936,2809.3,2808.9,0.00533466]
[1739802236257,3.029,2809.3,2808.9,0.00533466]
[1739802236466,3.029,2809.3,2809.2,0.71185]
[1739802236765,19.721,2809.5,2809.1,3.2078]
[1739802236962,19.721,2809.5,2809.4,3.9196]
[1739802237266,3.029,2809.7,2809.4,3.2078]
[1739802237565,0.71166,2810.0,2809.4,3.91958]
[1739802237763,0.7117,2809.8,2809.4,3.2078]
[1739802237967,0.7117,2809.8,2809.2,0.71184]
[1739802237968,4.29863592,2809.5,2809.1,3.2078]
[1739802238163,3.029,2809.7,2809.1,3.2078]
[1739802238465,3.029,2809.7,2808.9,0.00533466]
[1739802238466,6.2368,2809.7,2808.9,0.00533466]
[1739802238659,0.71184,2809.3,2808.9,0.00533466]
[1739802239065,4.29863592,2809.4,2808.9,0.00533466]
[1739802239562,6.7019,2809.7,2809.3,0.71181]
[1739802239761,3.029,2809.7,2809.2,3.2078]
[1739802239965,3.029,2809.7,2809.6,0.71175]
[1739802240162,3.029,2809.7,2809.4,0.71178]
[1739802240468,0.35600001,2810.1,2809.2,3.2078]
[1739802240762,3.029,2810.0,2809.2,3.2078]
[1739802240961,3.029,2810.0,2809.4,3.2078]
[1739802241164,0.00533466,2810.2,2810.1,0.71162]
[1739802241467,0.00533466,2810.2,2809.6,3.2078]
[1739802241663,0.00533466,2810.2,2810.1,0.71162]
[1739802242260,0.00533466,2810.2,2809.9,3.2078]
[1739802242460,0.00533466,2810.2,2810.1,0.71162]
[1739802242659,0.71162,2810.1,2809.9,3.2078]
[1739802242858,0.71162,2810.1,2809.6,3.8344]
[1739802242859,0.71695466,2810.2,2809.8,0.71169]
[1739802243057,0.71695466,2810.2,2809.6,7.0422]
[1739802243362,0.00533466,2810.2,2809.6,7.0422]
[1739802243563,3.2078,2810.1,2809.3,0.71181]
[1739802243767,4.29863592,2809.9,2809.4,3.7522]
[1739802244071,4.29863592,2809.9,2809.2,3.2078]
[1739802244072,0.7118,2809.5,2809.2,3.2078]
[1739802244463,3.029,2809.7,2809.2,3.2078]
[1739802244661,3.029,2810.1,2809.2,3.2078]
[1739802244968,3.029,2810.1,2809.8,0.7117]
[1739802244969,3.74063,2810.1,2809.8,0.7117]
[1739802245269,3.029,2810.1,2810.0,0.71165]
[1739802245469,0.00533466,2810.2,2810.1,0.71162]
[1739802245665,0.00533466,2810.2,2809.7,3.2078]
[1739802245868,0.71694466,2810.2,2809.7,3.2078]
[1739802246066,0.00533466,2810.2,2809.5,3.6903]
[1739802246265,0.71162,2810.1,2809.7,0.71173]
[1739802246570,0.00533466,2810.2,2809.7,3.2078]
[1739802246869,0.00533466,2810.2,2810.1,0.71162]
[1739802247459,0.00533466,2810.2,2809.7,3.2078]
[1739802247660,0.71166,2810.0,2809.6,0.71175]
[1739802247860,0.71166,2810.0,2809.6,0.71174]
[1739802248265,0.71169,2809.9,2809.5,0.71175]
[1739802248468,0.71169,2809.9,2809.3,3.2078]
[1739802248469,0.71166,2810.0,2809.7,0.71172]
[1739802248672,0.71166,2810.0,2809.2,4.8086]
[1739802248673,0.71693466,2810.2,2809.6,3.2078]
[1739802248874,0.00533466,2810.2,2809.6,3.2078]
[1739802249375,0.71173,2809.7,2809.6,3.2078]
[1739802249568,3.028,2809.9,2809.2,3.2078]
[1739802250376,0.71177,2809.6,2809.2,3.2078]
[1739802250569,3.028,2809.9,2809.2,3.2078]
[1739802250870,3.2646139,2809.9,2809.2,3.2078]
[1739802251068,3.028,2809.9,2809.2,3.2078]
[1739802251269,0.00533466,2810.2,2809.7,3.2078]
[1739802251469,0.00533466,2810.2,2809.4,3.2078]
[1739802251665,0.71166,2810.0,2809.4,3.2078]
[1739802252067,0.00533466,2810.2,2809.4,3.2078]
[1739802252068,1.78438466,2810.2,2809.6,0.71175]
[1739802252269,0.71169,2809.9,2809.4,3.2078]
[1739802252465,3.2078,2810.1,2809.4,3.9196]
[1739802252670,0.71171,2809.8,2809.6,0.71173]
[1739802252870,0.00533466,2810.2,2809.4,3.2078]
[1739802253069,0.00533466,2810.2,2810.1,0.71162]
[1739802253469,0.00533466,2810.2,2810.0,3.2078]
[1739802253773,0.71695466,2810.2,2810.0,0.71164]
[1739802253974,0.00533466,2810.2,2809.7,3.2078]
[1739802254273,0.00533466,2810.2,2810.1,0.71162]
[1739802254467,0.00533466,2810.2,2809.7,3.2078]
[1739802254670,0.71168,2809.9,2809.7,3.2078]
[1739802254874,0.00533466,2810.2,2809.4,3.2078]
[1739802254875,3.028,2810.0,2809.4,3.2078]
[1739802255073,0.71178,2809.5,2809.4,3.2078]
[1739802255263,7.50643592,2809.9,2809.4,3.2078]
[1739802255467,0.71178,2809.5,2809.4,3.2078]
[1739802256473,16.53443592,2809.5,2808.9,0.00533466]
[1739802256675,0.7119,2809.0,2808.9,0.00533466]
[1739802256975,3.7399,2809.0,2808.9,0.00533466]
[1739802258174,3.7399,2809.0,2807.4,6.9599]
[1739802258175,9.3848,2809.0,2807.4,6.9599]
[1739802258470,3.5646,2809.0,2808.2,3.2078]
[1739802258671,4.29863592,2809.0,2808.1,3.2078]
[1739802258869,0.3568,2808.9,2807.8,3.2078]
[1739802259271,4.29863592,2808.6,2807.8,3.2078]
[1739802259469,0.71205,2808.5,2808.1,0.00357548]
[1739802259670,7.33197058,2808.6,2808.1,0.00357548]
[1739802259873,8.04399058,2808.6,2808.1,0.00357548]
[1739802260076,7.33197058,2808.6,2808.1,0.00357548]
[1739802260463,0.71205,2808.5,2808.1,0.00357548]
[1739802260777,7.33197058,2808.6,2808.1,0.00357548]
[1739802260778,5.01074592,2808.2,2808.1,0.00357548]
[1739802261075,0.7122,2807.9,2807.2,0.71235]
[1739802261373,3.028,2807.8,2807.2,0.71234]
[1739802261571,3.028,2807.8,2807.3,0.71233]
[1739802261873,3.028,2807.8,2807.4,3.2078]
[1739802262180,4.29863592,2808.2,2807.0,5.0]
[1739802262181,7.32663592,2808.2,2807.7,3.2078]
[1739802262977,3.028,2808.2,2807.7,3.2078]
[1739802263371,7.32663592,2808.2,2807.7,3.2078]
[1739802263674,7.32663592,2808.2,2807.2,10.8346]
[1739802263675,7.32663592,2808.2,2807.3,3.2078]
[1739802263872,3.2078,2807.9,2807.3,3.2078]
[1739802264072,0.71235,2807.3,2807.0,5.0]
[1739802264273,3.028,2807.5,2807.0,5.0]
[1739802264576,3.028,2807.5,2807.2,3.2078]
[1739802264970,3.028,2807.5,2807.4,0.71231]
[1739802265173,19.737,2807.8,2807.2,3.2078]
[1739802265774,19.737,2807.8,2807.4,0.7123]
[1739802265977,19.737,2807.8,2807.5,0.71227]
[1739802266376,3.028,2808.4,2807.6,3.2078]
[1739802266578,0.71208,2808.3,2807.6,3.2078]
[1739802266773,6.5566,2808.4,2807.6,3.2078]
[1739802267081,0.71211,2808.2,2807.6,3.2078]
[1739802267378,10.85523592,2808.4,2807.6,3.2078]
[1739802267574,0.00533466,2808.6,2808.5,0.71203]
[1739802268379,3.028,2809.2,2808.5,6.0]
[1739802268682,4.29863592,2809.4,2808.8,3.2078]
[1739802268870,0.71188,2809.1,2808.8,3.2078]
[1739802269074,8.03845592,2809.4,2808.8,3.91974]
[1739802269380,0.71185,2809.3,2808.8,3.92507466]
[1739802269679,7.33197058,2809.4,2808.8,3.21313466]
[1739802269874,0.71187,2809.2,2808.8,3.21313466]
[1739802270074,7.33197058,2809.4,2808.8,3.21313466]
[1739802270274,0.71187,2809.2,2808.8,3.21313466]
[1739802270685,7.33197058,2809.4,2808.8,3.21313466]
[1739802270876,7.33197058,2809.4,2808.8,0.00533466]
[1739802271377,8.04378058,2809.4,2808.9,0.71192]
[1739802271781,8.04378058,2809.4,2809.0,0.7119]
[1739802271981,0.71184,2809.3,2808.9,0.71192]
[1739802272279,7.33197058,2809.4,2808.9,0.71192]
[1739802272482,0.71184,2809.3,2808.9,0.71192]
[1739802272682,0.71187,2809.2,2808.8,3.92507466]
[1739802272883,0.71184,2809.3,2808.9,0.71192]
[1739802273086,7.33197058,2809.4,2808.9,0.71192]
[1739802273281,7.33197058,2809.4,2808.8,3.21313466]
[1739802273483,8.04378058,2809.4,2809.0,0.71188]
[1739802273683,0.71184,2809.3,2809.0,0.7119]
[1739802274382,0.71183,2809.3,2809.0,0.7119]
[1739802274578,0.71184,2809.3,2809.0,0.71189]
[1739802274783,0.71185,2809.3,2808.8,3.92507466]
[1739802275089,0.71185,2809.3,2808.8,3.21313466]
[1739802275387,4.30397058,2809.4,2808.8,3.21313466]
[1739802275579,0.71186,2809.2,2808.8,3.21313466]
[1739802275784,4.30397058,2809.4,2808.8,3.21313466]
[1739802275984,0.00533466,2809.4,2809.1,3.2078]
[1739802276688,0.00533466,2809.4,2809.3,0.71183]
[1739802276882,0.00533466,2809.4,2809.1,3.2078]
[1739802277087,0.71184,2809.3,2809.1,3.2078]
[1739802277290,0.71715466,2809.4,2809.2,0.71184]